[Event "Titled Tuesday Blitz October 11 Late 2022"]
[White "Besedes, Danilo"]
[Black "Vlassov, Nikolai"]
[WhiteFideId "946796"]
[BlackFideId "4103360"]
[WhiteElo "2352"]
[BlackElo "2324"]
[Result "1-0"]
[Round "08"]
[TimeControl "180+1"]
[Date "2022.10.12"]
[WhiteClock "0:00:39"]
[BlackClock "0:00:03"]

1. d4 {[%clk 0:03:00]}  Nf6 {[%clk 0:02:59]} 2. Nf3 {[%clk 0:03:01]}  e6 {[%clk 0:02:59]} 3. Bf4 {[%clk 0:03:01]}  c5 {[%clk 0:02:59]} 4. c3 {[%clk 0:03:00]}  b6 {[%clk 0:03:00]} 5. Na3 {[%clk 0:02:59]}  cxd4 {[%clk 0:02:58]} 6. Nb5 {[%clk 0:02:52]}  Nd5 {[%clk 0:02:58]} 7. Qxd4 {[%clk 0:02:37]}  Nc6 {[%clk 0:02:23]} 8. Qa4 {[%clk 0:02:31]}  Nxf4 {[%clk 0:02:16]} 9. Qxf4 {[%clk 0:02:32]}  d6 {[%clk 0:02:14]} 10. Rd1 {[%clk 0:02:28]}  e5 {[%clk 0:02:13]} 11. Qe4 {[%clk 0:02:15]}  Bb7 {[%clk 0:02:05]} 12. Nxe5 {[%clk 0:02:15]}  dxe5 {[%clk 0:01:35]} 13. Rxd8+ {[%clk 0:02:13]}  Rxd8 {[%clk 0:01:35]} 14. Nxa7 {[%clk 0:02:06]}  f5 {[%clk 0:01:22]} 15. Qa4 {[%clk 0:02:00]}  Ra8 {[%clk 0:01:20]} 16. e3 {[%clk 0:01:40]}  Rxa7 {[%clk 0:01:18]} 17. Qb3 {[%clk 0:01:40]}  Be7 {[%clk 0:01:07]} 18. Bb5 {[%clk 0:01:40]}  Kd7 {[%clk 0:00:49]} 19. O-O {[%clk 0:01:39]}  Kc7 {[%clk 0:00:49]} 20. Rd1 {[%clk 0:01:35]}  Rd8 {[%clk 0:00:47]} 21. Rxd8 {[%clk 0:01:35]}  Nxd8 {[%clk 0:00:45]} 22. a4 {[%clk 0:01:29]}  Bc6 {[%clk 0:00:42]} 23. Qc4 {[%clk 0:01:29]}  Ra8 {[%clk 0:00:34]} 24. b4 {[%clk 0:01:29]}  Kb7 {[%clk 0:00:31]} 25. Bxc6+ {[%clk 0:01:21]}  Nxc6 {[%clk 0:00:31]} 26. b5 {[%clk 0:01:21]}  Na5 {[%clk 0:00:24]} 27. Qf7 {[%clk 0:01:18]}  Rd8 {[%clk 0:00:19]} 28. Qxe7+ {[%clk 0:01:17]}  Kc8 {[%clk 0:00:20]} 29. g4 {[%clk 0:01:15]}  fxg4 {[%clk 0:00:19]} 30. Qxe5 {[%clk 0:01:10]}  Rd7 {[%clk 0:00:15]} 31. Kg2 {[%clk 0:01:05]}  Nb7 {[%clk 0:00:15]} 32. Qe8+ {[%clk 0:01:04]}  Kc7 {[%clk 0:00:15]} 33. Qe5+ {[%clk 0:01:04]}  Kc8 {[%clk 0:00:15]} 34. c4 {[%clk 0:01:04]}  Nc5 {[%clk 0:00:15]} 35. Qe8+ {[%clk 0:01:03]}  Kc7 {[%clk 0:00:15]} 36. a5 {[%clk 0:01:02]}  bxa5 {[%clk 0:00:15]} 37. Qa8 {[%clk 0:01:01]}  Kb6 {[%clk 0:00:14]} 38. Qb8+ {[%clk 0:01:00]}  Nb7 {[%clk 0:00:13]} 39. Qc8 {[%clk 0:00:58]}  Rc7 {[%clk 0:00:12]} 40. Qe6+ {[%clk 0:00:58]}  Kc5 {[%clk 0:00:11]} 41. Qe5+ {[%clk 0:00:56]}  Kb6 {[%clk 0:00:11]} 42. Qd4+ {[%clk 0:00:57]}  Nc5 {[%clk 0:00:11]} 43. Qd6+ {[%clk 0:00:56]}  Kb7 {[%clk 0:00:12]} 44. Qd5+ {[%clk 0:00:54]}  Kb6 {[%clk 0:00:12]} 45. Qd8 {[%clk 0:00:52]}  a4 {[%clk 0:00:10]} 46. Qa8 {[%clk 0:00:51]}  Rb7 {[%clk 0:00:05]} 47. Qd8+ {[%clk 0:00:49]}  Rc7 {[%clk 0:00:05]} 48. Qd6+ {[%clk 0:00:49]}  Kb7 {[%clk 0:00:05]} 49. e4 {[%clk 0:00:47]}  a3 {[%clk 0:00:03]} 50. Qd5+ {[%clk 0:00:47]}  Kb6 {[%clk 0:00:03]} 51. Qd6+ {[%clk 0:00:47]}  Kb7 {[%clk 0:00:03]} 52. Qd2 {[%clk 0:00:47]}  Nxe4 {[%clk 0:00:03]} 53. Qa5 {[%clk 0:00:46]}  Nc5 {[%clk 0:00:02]} 54. Qxa3 {[%clk 0:00:46]}  Kb6 {[%clk 0:00:03]} 55. Qc3 {[%clk 0:00:44]}  h5 {[%clk 0:00:03]} 56. Qe5 {[%clk 0:00:43]}  Kb7 {[%clk 0:00:02]} 57. Qxh5 {[%clk 0:00:42]}  Na4 {[%clk 0:00:02]} 58. Qd5+ {[%clk 0:00:42]}  Kb6 {[%clk 0:00:03]} 59. Qd6+ {[%clk 0:00:41]}  Kb7 {[%clk 0:00:03]} 60. Qd5+ {[%clk 0:00:41]}  Kb6 {[%clk 0:00:03]} 61. Kg3 {[%clk 0:00:42]}  Rc5 {[%clk 0:00:02]} 62. Qd6+ {[%clk 0:00:40]}  Ka5 {[%clk 0:00:02]} 63. b6 {[%clk 0:00:38]}  Rxc4 {[%clk 0:00:02]} 64. b7 {[%clk 0:00:38]}  Rc3+ {[%clk 0:00:03]} 65. Kg2 {[%clk 0:00:37]}  Rb3 {[%clk 0:00:03]} 66. b8=Q {[%clk 0:00:38]}  Rxb8 {[%clk 0:00:03]} 67. Qxb8 {[%clk 0:00:39]} 1-0


[Site "https://www.chess.com"]

[Event "Titled Tuesday Blitz October 11 Late 2022"]
[White "Boros, Denes"]
[Black "Zomorrodian, Eilia"]
[WhiteFideId "722340"]
[BlackFideId "12551805"]
[WhiteElo "2464"]
[BlackElo "2078"]
[Result "0-1"]
[Round "08"]
[TimeControl "180+1"]
[Date "2022.10.11"]
[WhiteClock "0:00:11"]
[BlackClock "0:00:17"]

1. e4 {[%clk 0:03:00]}  c5 {[%clk 0:02:57]} 2. b3 {[%clk 0:03:00]}  b6 {[%clk 0:02:53]} 3. Nc3 {[%clk 0:02:58]}  Bb7 {[%clk 0:02:54]} 4. Nf3 {[%clk 0:02:55]}  e6 {[%clk 0:02:54]} 5. Bb2 {[%clk 0:02:53]}  Nc6 {[%clk 0:02:42]} 6. d4 {[%clk 0:02:53]}  cxd4 {[%clk 0:02:40]} 7. Nxd4 {[%clk 0:02:54]}  Nf6 {[%clk 0:02:37]} 8. Nxc6 {[%clk 0:02:44]}  dxc6 {[%clk 0:02:29]} 9. e5 {[%clk 0:02:37]}  Nd7 {[%clk 0:02:15]} 10. Ne4 {[%clk 0:02:33]}  Nc5 {[%clk 0:02:09]} 11. Nd6+ {[%clk 0:02:21]}  Bxd6 {[%clk 0:02:09]} 12. exd6 {[%clk 0:02:22]}  Qg5 {[%clk 0:02:09]} 13. h4 {[%clk 0:02:16]}  Qg6 {[%clk 0:02:05]} 14. Rh3 {[%clk 0:02:10]}  f6 {[%clk 0:01:36]} 15. Rg3 {[%clk 0:01:35]}  Qe4+ {[%clk 0:01:32]} 16. Be2 {[%clk 0:01:30]}  O-O {[%clk 0:01:31]} 17. Qd4 {[%clk 0:01:24]}  Qxd4 {[%clk 0:01:23]} 18. Bxd4 {[%clk 0:01:24]}  Ne4 {[%clk 0:01:24]} 19. Rd3 {[%clk 0:01:22]}  Rad8 {[%clk 0:01:15]} 20. Rad1 {[%clk 0:01:03]}  Rxd6 {[%clk 0:01:10]} 21. Re3 {[%clk 0:00:49]}  c5 {[%clk 0:01:08]} 22. Bb2 {[%clk 0:00:48]}  Rfd8 {[%clk 0:01:03]} 23. f3 {[%clk 0:00:47]}  Ng3 {[%clk 0:00:51]} 24. Rxe6 {[%clk 0:00:29]}  Rxe6 {[%clk 0:00:51]} 25. Rxd8+ {[%clk 0:00:29]}  Kf7 {[%clk 0:00:51]} 26. Rd7+ {[%clk 0:00:29]}  Kg6 {[%clk 0:00:50]} 27. Rd2 {[%clk 0:00:23]}  Kh5 {[%clk 0:00:39]} 28. Kf2 {[%clk 0:00:22]}  Nxe2 {[%clk 0:00:40]} 29. Rxe2 {[%clk 0:00:23]}  Rxe2+ {[%clk 0:00:40]} 30. Kxe2 {[%clk 0:00:24]}  Kxh4 {[%clk 0:00:41]} 31. Kf2 {[%clk 0:00:24]}  Kg5 {[%clk 0:00:38]} 32. a4 {[%clk 0:00:24]}  Bd5 {[%clk 0:00:37]} 33. a5 {[%clk 0:00:23]}  bxa5 {[%clk 0:00:36]} 34. Bc3 {[%clk 0:00:23]}  c4 {[%clk 0:00:33]} 35. bxc4 {[%clk 0:00:22]}  Bxc4 {[%clk 0:00:34]} 36. Bxa5 {[%clk 0:00:23]}  Kf5 {[%clk 0:00:35]} 37. c3 {[%clk 0:00:22]}  a6 {[%clk 0:00:35]} 38. Bd8 {[%clk 0:00:22]}  g5 {[%clk 0:00:35]} 39. g4+ {[%clk 0:00:22]}  Kg6 {[%clk 0:00:35]} 40. Kg3 {[%clk 0:00:21]}  f5 {[%clk 0:00:36]} 41. f4 {[%clk 0:00:21]}  fxg4 {[%clk 0:00:27]} 42. fxg5 {[%clk 0:00:16]}  Kf5 {[%clk 0:00:23]} 43. Be7 {[%clk 0:00:13]}  Be2 {[%clk 0:00:23]} 44. Bd8 {[%clk 0:00:12]}  Ke4 {[%clk 0:00:22]} 45. Be7 {[%clk 0:00:11]}  Kd3 {[%clk 0:00:21]} 46. Bb4 {[%clk 0:00:12]}  Kc4 {[%clk 0:00:21]} 47. Kf4 {[%clk 0:00:11]}  Kb5 {[%clk 0:00:21]} 48. Ke3 {[%clk 0:00:11]}  Bd1 {[%clk 0:00:21]} 49. Ba3 {[%clk 0:00:11]}  a5 {[%clk 0:00:20]} 50. Kd4 {[%clk 0:00:12]}  g3 {[%clk 0:00:19]} 51. Ke3 {[%clk 0:00:11]}  Kc4 {[%clk 0:00:18]} 52. Kd2 {[%clk 0:00:11]}  g2 {[%clk 0:00:17]} 0-1


[Site "https://www.chess.com"]

[Event "Titled Tuesday Blitz October 11 Late 2022"]
[White "Castella Garcia, Fausto"]
[Black "Ardila, Oscar Humberto"]
[WhiteFideId "3501922"]
[BlackFideId "4404742"]
[WhiteElo "2246"]
[BlackElo "1898"]
[Result "1-0"]
[Round "08"]
[TimeControl "180+1"]
[Date "2022.10.12"]
[WhiteClock "0:01:07"]
[BlackClock "0:01:23"]

1. e4 {[%clk 0:03:00]}  e5 {[%clk 0:02:59]} 2. Nf3 {[%clk 0:03:00]}  Nf6 {[%clk 0:03:00]} 3. d4 {[%clk 0:02:58]}  Nxe4 {[%clk 0:02:59]} 4. Bd3 {[%clk 0:02:57]}  d5 {[%clk 0:02:59]} 5. Nxe5 {[%clk 0:02:56]}  Bd6 {[%clk 0:02:59]} 6. O-O {[%clk 0:02:46]}  O-O {[%clk 0:02:56]} 7. c4 {[%clk 0:02:41]}  c6 {[%clk 0:02:49]} 8. Nc3 {[%clk 0:02:37]}  Nxc3 {[%clk 0:02:48]} 9. bxc3 {[%clk 0:02:36]}  Be6 {[%clk 0:02:47]} 10. cxd5 {[%clk 0:02:26]}  Bxd5 {[%clk 0:02:42]} 11. Qg4 {[%clk 0:02:09]}  Bxe5 {[%clk 0:02:20]} 12. dxe5 {[%clk 0:02:06]}  Re8 {[%clk 0:02:15]} 13. Bg5 {[%clk 0:01:56]}  Qd7 {[%clk 0:02:12]} 14. Qh4 {[%clk 0:01:55]}  h6 {[%clk 0:01:54]} 15. Bxh6 {[%clk 0:01:54]}  gxh6 {[%clk 0:01:54]} 16. Qxh6 {[%clk 0:01:54]}  f5 {[%clk 0:01:42]} 17. exf6 {[%clk 0:01:44]}  Qf7 {[%clk 0:01:37]} 18. Qg5+ {[%clk 0:01:11]}  Kh8 {[%clk 0:01:33]} 19. Bg6 {[%clk 0:01:10]}  Rg8 {[%clk 0:01:23]} 20. Qh5+ {[%clk 0:01:07]} 1-0


[Site "https://www.chess.com"]

[Event "Titled Tuesday Blitz October 11 Late 2022"]
[White "Domingo Nunez, Ruben"]
[Black "Pasti, Aron"]
[WhiteFideId "22245570"]
[BlackFideId "785857"]
[WhiteElo "2635"]
[BlackElo "2498"]
[Result "1-0"]
[Round "08"]
[TimeControl "180+1"]
[Date "2022.10.12"]
[WhiteClock "0:00:02"]
[BlackClock "0:00:19"]

1. b3 {[%clk 0:03:00]}  b6 {[%clk 0:02:59]} 2. Bb2 {[%clk 0:03:00]}  Bb7 {[%clk 0:03:00]} 3. c4 {[%clk 0:02:58]}  Nf6 {[%clk 0:03:00]} 4. Nf3 {[%clk 0:02:58]}  e6 {[%clk 0:03:01]} 5. e3 {[%clk 0:02:58]}  Be7 {[%clk 0:03:01]} 6. Be2 {[%clk 0:02:58]}  O-O {[%clk 0:03:02]} 7. O-O {[%clk 0:02:59]}  c5 {[%clk 0:03:03]} 8. Nc3 {[%clk 0:02:59]}  d5 {[%clk 0:03:03]} 9. cxd5 {[%clk 0:02:59]}  Nxd5 {[%clk 0:03:04]} 10. Rc1 {[%clk 0:02:59]}  Nc6 {[%clk 0:03:04]} 11. Qc2 {[%clk 0:02:55]}  Bf6 {[%clk 0:03:02]} 12. Rfd1 {[%clk 0:02:55]}  Nc7 {[%clk 0:02:56]} 13. d4 {[%clk 0:02:51]}  cxd4 {[%clk 0:02:56]} 14. Ne4 {[%clk 0:02:49]}  Nd5 {[%clk 0:02:47]} 15. Nxf6+ {[%clk 0:02:23]}  Qxf6 {[%clk 0:02:48]} 16. Nxd4 {[%clk 0:02:18]}  Nxd4 {[%clk 0:02:44]} 17. Bxd4 {[%clk 0:02:12]}  Qg5 {[%clk 0:02:40]} 18. Bf3 {[%clk 0:01:26]}  Nb4 {[%clk 0:02:38]} 19. Qe2 {[%clk 0:00:58]}  Bxf3 {[%clk 0:02:38]} 20. Qxf3 {[%clk 0:00:59]}  Nxa2 {[%clk 0:02:38]} 21. Rc7 {[%clk 0:00:59]}  Nb4 {[%clk 0:02:21]} 22. e4 {[%clk 0:00:55]}  Qg6 {[%clk 0:02:16]} 23. h4 {[%clk 0:00:53]}  Rfc8 {[%clk 0:02:12]} 24. h5 {[%clk 0:00:52]}  Rxc7 {[%clk 0:01:55]} 25. hxg6 {[%clk 0:00:51]}  hxg6 {[%clk 0:01:56]} 26. Be5 {[%clk 0:00:41]}  Rc6 {[%clk 0:01:49]} 27. Bc3 {[%clk 0:00:38]}  Na6 {[%clk 0:01:42]} 28. Rd7 {[%clk 0:00:35]}  Rf8 {[%clk 0:01:39]} 29. b4 {[%clk 0:00:26]}  Nc7 {[%clk 0:01:36]} 30. Qd3 {[%clk 0:00:24]}  Re8 {[%clk 0:01:09]} 31. g3 {[%clk 0:00:10]}  a6 {[%clk 0:01:07]} 32. Kg2 {[%clk 0:00:10]}  Nb5 {[%clk 0:01:03]} 33. Be5 {[%clk 0:00:09]}  Kh7 {[%clk 0:00:58]} 34. Qd1 {[%clk 0:00:06]}  Rf8 {[%clk 0:00:40]} 35. Qf3 {[%clk 0:00:03]}  Kg8 {[%clk 0:00:37]} 36. Qd3 {[%clk 0:00:03]}  f6 {[%clk 0:00:33]} 37. Bb2 {[%clk 0:00:03]}  Kh7 {[%clk 0:00:33]} 38. Qf3 {[%clk 0:00:01]}  e5 {[%clk 0:00:26]} 39. Qg4 {[%clk 0:00:02]}  Rg8 {[%clk 0:00:19]} 40. Qh3# {[%clk 0:00:02]} 1-0


[Site "https://www.chess.com"]

[Event "Titled Tuesday Blitz October 11 Late 2022"]
[White "Dubov, Daniil"]
[Black "Bernadskiy, Vitaliy"]
[WhiteFideId "24126055"]
[BlackFideId "14100371"]
[WhiteElo "2791"]
[BlackElo "2473"]
[Result "1-0"]
[Round "08"]
[TimeControl "180+1"]
[Date "2022.10.11"]
[WhiteClock "0:02:20"]
[BlackClock "0:00:09"]

1. e4 {[%clk 0:02:56]}  e5 {[%clk 0:02:58]} 2. Nf3 {[%clk 0:02:55]}  Nc6 {[%clk 0:02:59]} 3. Bc4 {[%clk 0:02:56]}  Bc5 {[%clk 0:02:57]} 4. c3 {[%clk 0:02:53]}  Nf6 {[%clk 0:02:55]} 5. d3 {[%clk 0:02:53]}  O-O {[%clk 0:02:54]} 6. O-O {[%clk 0:02:54]}  d5 {[%clk 0:02:50]} 7. exd5 {[%clk 0:02:53]}  Nxd5 {[%clk 0:02:50]} 8. a4 {[%clk 0:02:54]}  a6 {[%clk 0:02:49]} 9. Nbd2 {[%clk 0:02:52]}  Bg4 {[%clk 0:02:46]} 10. h3 {[%clk 0:02:51]}  Bh5 {[%clk 0:02:45]} 11. Ne4 {[%clk 0:02:51]}  Ba7 {[%clk 0:02:30]} 12. Ng3 {[%clk 0:02:48]}  Bg6 {[%clk 0:02:29]} 13. a5 {[%clk 0:02:48]}  Kh8 {[%clk 0:02:26]} 14. Qb3 {[%clk 0:02:46]}  Nf4 {[%clk 0:02:21]} 15. d4 {[%clk 0:02:42]}  Qf6 {[%clk 0:01:40]} 16. Bxf4 {[%clk 0:02:39]}  exf4 {[%clk 0:01:09]} 17. Ne2 {[%clk 0:02:38]}  Rfe8 {[%clk 0:01:08]} 18. Qxb7 {[%clk 0:02:34]}  Be4 {[%clk 0:01:07]} 19. Qxc7 {[%clk 0:02:31]}  Bxf3 {[%clk 0:00:30]} 20. gxf3 {[%clk 0:02:30]}  Qg6+ {[%clk 0:00:20]} 21. Kh2 {[%clk 0:02:23]}  Rac8 {[%clk 0:00:20]} 22. Qd7 {[%clk 0:02:22]}  Bb8 {[%clk 0:00:09]} 23. Bxf7 {[%clk 0:02:20]} 1-0


[Site "https://www.chess.com"]

[Event "Titled Tuesday Blitz October 11 Late 2022"]
[White "Duda, Jan-Krzysztof"]
[Black "Vazquez, Guillermo"]
[WhiteFideId "1170546"]
[BlackFideId "3702308"]
[WhiteElo "2779"]
[BlackElo "2543"]
[Result "1-0"]
[Round "08"]
[TimeControl "180+1"]
[Date "2022.10.11"]
[WhiteClock "0:01:14"]
[BlackClock "0:00:15"]

1. d4 {[%clk 0:03:00]}  d5 {[%clk 0:02:56]} 2. c4 {[%clk 0:03:00]}  e6 {[%clk 0:02:56]} 3. Nf3 {[%clk 0:03:00]}  a6 {[%clk 0:02:56]} 4. cxd5 {[%clk 0:02:58]}  exd5 {[%clk 0:02:57]} 5. Nc3 {[%clk 0:02:57]}  h6 {[%clk 0:02:57]} 6. Bf4 {[%clk 0:02:53]}  Nf6 {[%clk 0:02:57]} 7. e3 {[%clk 0:02:53]}  Bd6 {[%clk 0:02:58]} 8. Bd3 {[%clk 0:02:48]}  Bxf4 {[%clk 0:02:54]} 9. exf4 {[%clk 0:02:48]}  Bg4 {[%clk 0:02:54]} 10. h3 {[%clk 0:02:44]}  Bxf3 {[%clk 0:02:53]} 11. Qxf3 {[%clk 0:02:45]}  Nc6 {[%clk 0:02:53]} 12. O-O-O {[%clk 0:02:41]}  O-O {[%clk 0:02:35]} 13. Bb1 {[%clk 0:02:40]}  Re8 {[%clk 0:02:13]} 14. g4 {[%clk 0:02:38]}  Ne4 {[%clk 0:02:07]} 15. Bxe4 {[%clk 0:02:16]}  dxe4 {[%clk 0:02:06]} 16. Qe3 {[%clk 0:02:16]}  Nb4 {[%clk 0:02:01]} 17. d5 {[%clk 0:02:08]}  c6 {[%clk 0:01:37]} 18. dxc6 {[%clk 0:01:58]}  Qc7 {[%clk 0:01:36]} 19. Rd4 {[%clk 0:01:42]}  a5 {[%clk 0:00:51]} 20. a3 {[%clk 0:01:35]}  Qxc6 {[%clk 0:00:48]} 21. Kb1 {[%clk 0:01:32]}  Nd3 {[%clk 0:00:43]} 22. Rd1 {[%clk 0:01:29]}  Qc7 {[%clk 0:00:19]} 23. f5 {[%clk 0:01:15]}  Qf4 {[%clk 0:00:15]} 24. R1xd3 {[%clk 0:01:14]} 1-0


[Site "https://www.chess.com"]

[Event "Titled Tuesday Blitz October 11 Late 2022"]
[White "Dzierzak, Radoslaw"]
[Black "Shandrygin, Nikita"]
[WhiteFideId "1161407"]
[BlackFideId "24198668"]
[WhiteElo "2111"]
[BlackElo "2323"]
[Result "0-1"]
[Round "08"]
[TimeControl "180+1"]
[Date "2022.10.12"]
[WhiteClock "0:00:06"]
[BlackClock "0:00:05"]

1. e4 {[%clk 0:03:00]}  c5 {[%clk 0:03:00]} 2. Nf3 {[%clk 0:02:59]}  e6 {[%clk 0:03:00]} 3. d4 {[%clk 0:02:59]}  cxd4 {[%clk 0:03:01]} 4. Nxd4 {[%clk 0:02:59]}  Nf6 {[%clk 0:03:02]} 5. Nc3 {[%clk 0:03:00]}  Nc6 {[%clk 0:03:03]} 6. g3 {[%clk 0:02:59]}  Qc7 {[%clk 0:02:58]} 7. Bg2 {[%clk 0:02:59]}  a6 {[%clk 0:02:59]} 8. O-O {[%clk 0:02:59]}  h6 {[%clk 0:02:59]} 9. Re1 {[%clk 0:02:55]}  Nxd4 {[%clk 0:02:59]} 10. Qxd4 {[%clk 0:02:55]}  Bc5 {[%clk 0:03:00]} 11. Bf4 {[%clk 0:02:45]}  d6 {[%clk 0:02:59]} 12. Qd3 {[%clk 0:02:39]}  e5 {[%clk 0:02:59]} 13. Be3 {[%clk 0:02:38]}  Be6 {[%clk 0:02:59]} 14. Bxc5 {[%clk 0:02:34]}  Qxc5 {[%clk 0:02:59]} 15. Nd5 {[%clk 0:02:32]}  Bxd5 {[%clk 0:02:57]} 16. exd5 {[%clk 0:02:32]}  O-O {[%clk 0:02:56]} 17. c3 {[%clk 0:02:31]}  b5 {[%clk 0:02:53]} 18. Qe3 {[%clk 0:02:23]}  Rac8 {[%clk 0:02:49]} 19. Qxc5 {[%clk 0:02:21]}  Rxc5 {[%clk 0:02:50]} 20. Rad1 {[%clk 0:02:21]}  a5 {[%clk 0:02:48]} 21. f4 {[%clk 0:02:20]}  exf4 {[%clk 0:02:42]} 22. gxf4 {[%clk 0:02:21]}  b4 {[%clk 0:02:42]} 23. cxb4 {[%clk 0:02:19]}  axb4 {[%clk 0:02:43]} 24. Rd4 {[%clk 0:02:18]}  Rb8 {[%clk 0:02:43]} 25. Re2 {[%clk 0:01:35]}  Kf8 {[%clk 0:01:14]} 26. h3 {[%clk 0:01:35]}  Rc1+ {[%clk 0:01:02]} 27. Kf2 {[%clk 0:01:34]}  Ra1 {[%clk 0:01:03]} 28. b3 {[%clk 0:01:33]}  Nd7 {[%clk 0:01:03]} 29. Rc2 {[%clk 0:01:05]}  Nc5 {[%clk 0:01:00]} 30. Bf1 {[%clk 0:00:39]}  Ke7 {[%clk 0:00:50]} 31. Be2 {[%clk 0:00:39]}  Kf6 {[%clk 0:00:49]} 32. Ke3 {[%clk 0:00:28]}  Re8+ {[%clk 0:00:46]} 33. Kf3 {[%clk 0:00:24]}  Rb8 {[%clk 0:00:12]} 34. Rcc4 {[%clk 0:00:21]}  Rxa2 {[%clk 0:00:11]} 35. Rxb4 {[%clk 0:00:21]}  Rxb4 {[%clk 0:00:12]} 36. Rxb4 {[%clk 0:00:20]}  Rb2 {[%clk 0:00:08]} 37. Bc4 {[%clk 0:00:19]}  Rb1 {[%clk 0:00:06]} 38. Rb6 {[%clk 0:00:19]}  Ke7 {[%clk 0:00:06]} 39. Rc6 {[%clk 0:00:18]}  g5 {[%clk 0:00:06]} 40. Rc7+ {[%clk 0:00:18]}  Kf6 {[%clk 0:00:07]} 41. fxg5+ {[%clk 0:00:18]}  hxg5 {[%clk 0:00:07]} 42. Rc6 {[%clk 0:00:17]}  Ke5 {[%clk 0:00:07]} 43. Rc7 {[%clk 0:00:16]}  f5 {[%clk 0:00:07]} 44. Re7+ {[%clk 0:00:15]}  Kd4 {[%clk 0:00:08]} 45. Rf7 {[%clk 0:00:15]}  Nxb3 {[%clk 0:00:06]} 46. Be2 {[%clk 0:00:12]}  Nd2+ {[%clk 0:00:05]} 47. Kf2 {[%clk 0:00:12]}  Ne4+ {[%clk 0:00:05]} 48. Kf3 {[%clk 0:00:13]}  Rb3+ {[%clk 0:00:05]} 49. Kg2 {[%clk 0:00:13]}  Ke5 {[%clk 0:00:06]} 50. Re7+ {[%clk 0:00:12]}  Kxd5 {[%clk 0:00:07]} 51. Bf3 {[%clk 0:00:12]}  Re3 {[%clk 0:00:07]} 52. Rf7 {[%clk 0:00:11]}  Ke5 {[%clk 0:00:04]} 53. Re7+ {[%clk 0:00:11]}  Kf4 {[%clk 0:00:05]} 54. Bxe4 {[%clk 0:00:10]}  Rxe4 {[%clk 0:00:04]} 55. Rd7 {[%clk 0:00:10]}  Rd4 {[%clk 0:00:04]} 56. h4 {[%clk 0:00:06]}  Rd2+ {[%clk 0:00:05]} 57. Kh3 {[%clk 0:00:06]}  g4# {[%clk 0:00:05]} 0-1


[Site "https://www.chess.com"]

[Event "Titled Tuesday Blitz October 11 Late 2022"]
[White "Elias, Thabo"]
[Black "Floresvillar Gonzalez, Luis Migu"]
[WhiteFideId "11312610"]
[BlackFideId "5100542"]
[WhiteElo "1689"]
[BlackElo "2040"]
[Result "0-1"]
[Round "08"]
[TimeControl "180+1"]
[Date "2022.10.12"]
[WhiteClock "0:02:06"]
[BlackClock "0:02:09"]

1. Nf3 {[%clk 0:02:40]}  d5 {[%clk 0:02:58]} 2. g3 {[%clk 0:02:38]}  c6 {[%clk 0:02:58]} 3. Bg2 {[%clk 0:02:38]}  Bg4 {[%clk 0:02:58]} 4. O-O {[%clk 0:02:38]}  Nd7 {[%clk 0:02:57]} 5. d3 {[%clk 0:02:38]}  e5 {[%clk 0:02:56]} 6. Nbd2 {[%clk 0:02:39]}  Bd6 {[%clk 0:02:55]} 7. e4 {[%clk 0:02:39]}  d4 {[%clk 0:02:54]} 8. c3 {[%clk 0:02:37]}  dxc3 {[%clk 0:02:53]} 9. bxc3 {[%clk 0:02:36]}  Ngf6 {[%clk 0:02:53]} 10. h3 {[%clk 0:02:35]}  Bh5 {[%clk 0:02:48]} 11. Rb1 {[%clk 0:02:33]}  b6 {[%clk 0:02:46]} 12. Nc4 {[%clk 0:02:31]}  Bc7 {[%clk 0:02:41]} 13. Ne3 {[%clk 0:02:30]}  O-O {[%clk 0:02:37]} 14. Nf5 {[%clk 0:02:30]}  Re8 {[%clk 0:02:31]} 15. g4 {[%clk 0:02:27]}  Bg6 {[%clk 0:02:30]} 16. Qe2 {[%clk 0:02:22]}  c5 {[%clk 0:02:22]} 17. c4 {[%clk 0:02:17]}  Nf8 {[%clk 0:02:20]} 18. Ng5 {[%clk 0:02:14]}  h6 {[%clk 0:02:16]} 19. Nf3 {[%clk 0:02:12]}  Ne6 {[%clk 0:02:15]} 20. N3h4 {[%clk 0:02:12]}  Bxf5 {[%clk 0:02:13]} 21. Nxf5 {[%clk 0:02:10]}  Nd4 {[%clk 0:02:11]} 22. Be3 {[%clk 0:02:06]}  Nxe2+ {[%clk 0:02:09]} 0-1


[Site "https://www.chess.com"]

[Event "Titled Tuesday Blitz October 11 Late 2022"]
[White "Fedoseev, Vladimir"]
[Black "Urazayev, Arystanbek"]
[WhiteFideId "24130737"]
[BlackFideId "13709810"]
[WhiteElo "2726"]
[BlackElo "2441"]
[Result "1-0"]
[Round "08"]
[TimeControl "180+1"]
[Date "2022.10.11"]
[WhiteClock "0:00:30"]
[BlackClock "0:00:12"]

1. e4 {[%clk 0:02:21]}  c6 {[%clk 0:02:58]} 2. d3 {[%clk 0:02:20]}  d5 {[%clk 0:02:58]} 3. Nd2 {[%clk 0:02:21]}  e5 {[%clk 0:02:57]} 4. Ngf3 {[%clk 0:02:21]}  Bd6 {[%clk 0:02:57]} 5. d4 {[%clk 0:02:21]}  exd4 {[%clk 0:02:55]} 6. exd5 {[%clk 0:02:21]}  Nf6 {[%clk 0:02:56]} 7. dxc6 {[%clk 0:02:20]}  Nxc6 {[%clk 0:02:56]} 8. Be2 {[%clk 0:02:19]}  O-O {[%clk 0:02:56]} 9. O-O {[%clk 0:02:20]}  Re8 {[%clk 0:02:49]} 10. Nb3 {[%clk 0:02:18]}  Bg4 {[%clk 0:02:48]} 11. h3 {[%clk 0:02:06]}  Bh5 {[%clk 0:02:45]} 12. Nfxd4 {[%clk 0:02:00]}  Bxe2 {[%clk 0:02:26]} 13. Nxe2 {[%clk 0:01:58]}  Bh2+ {[%clk 0:02:24]} 14. Kxh2 {[%clk 0:01:54]}  Qxd1 {[%clk 0:02:23]} 15. Rxd1 {[%clk 0:01:55]}  Rxe2 {[%clk 0:02:24]} 16. Rd2 {[%clk 0:01:48]}  Re1 {[%clk 0:02:23]} 17. c3 {[%clk 0:01:43]}  h5 {[%clk 0:01:40]} 18. Rc2 {[%clk 0:01:40]}  Rae8 {[%clk 0:01:30]} 19. Be3 {[%clk 0:01:32]}  Rxa1 {[%clk 0:01:29]} 20. Nxa1 {[%clk 0:01:32]}  Nd5 {[%clk 0:01:30]} 21. Bc1 {[%clk 0:01:30]}  Re1 {[%clk 0:01:19]} 22. Nb3 {[%clk 0:01:29]}  f6 {[%clk 0:01:05]} 23. Bd2 {[%clk 0:01:23]}  Rb1 {[%clk 0:01:03]} 24. f4 {[%clk 0:01:15]}  h4 {[%clk 0:01:00]} 25. Nc5 {[%clk 0:01:12]}  b6 {[%clk 0:00:57]} 26. Nd3 {[%clk 0:01:11]}  Rd1 {[%clk 0:00:46]} 27. b3 {[%clk 0:01:02]}  Nce7 {[%clk 0:00:34]} 28. c4 {[%clk 0:00:51]}  Nc7 {[%clk 0:00:18]} 29. Nb2 {[%clk 0:00:44]}  Rb1 {[%clk 0:00:17]} 30. Na4 {[%clk 0:00:39]}  Rf1 {[%clk 0:00:12]} 31. Rc1 {[%clk 0:00:38]}  Rf2 {[%clk 0:00:12]} 32. Rd1 {[%clk 0:00:39]}  Nf5 {[%clk 0:00:12]} 33. Nc3 {[%clk 0:00:31]}  Ne6 {[%clk 0:00:11]} 34. Kg1 {[%clk 0:00:31]}  Re2 {[%clk 0:00:12]} 35. Nxe2 {[%clk 0:00:30]} 1-0


[Site "https://www.chess.com"]